[Event "110th Anniversary Open 2020"]
[Site "Hilleroed"]
[Date "2020.02.09"]
[Round "3.11"]
[White "Wu, Sibo"]
[Black "Friis, Henrik"]
[Result "1-0"]
[ECO "A54"]
[WhiteElo "2060"]
[BlackElo "1804"]
[Annotator "NA RC"]
[PlyCount "61"]
[EventDate "2020.02.08"]
[EventType "swiss"]
[EventCountry "DEN"]
[SourceTitle "playchess.com"]
[Source "ChessBase"]
[SourceQuality "1"]
[TimeControl "40/5400+30:1800+30"]

{[%evp 14,58,48,32767,56,32767,49,34,32,27,37,20,26,32767,32767,32767,32767,24,19,0,54,18,99,43,279,676,324,676,269,266,639,332,623,278,263,331,294,319,607,32767,547,589,646,889,855,821,889]} 1. d4 {[%emt 0:00:00]} d6 {[%emt 0:00:00]} 2. Nf3 {[%emt 0:02:48]} Nf6 {[%emt 0:00:06]} 3. g3 {[%emt 0:02:57]} Nbd7 {[%emt 0:01:32]} 4. Bg2 {[%emt 0:04:16]} e5 {[%emt 0:01:00]} 5. c4 {[%emt 0:01:45]} Be7 {[%emt 0:00:47]} 6. Nc3 {[%emt 0:03:02]} O-O {[%emt 0:01:41]} 7. O-O {[%emt 0:02:56]} c6 {[%emt 0:00:50]} 8. Qc2 {[%emt 0:08:20]} Qc7 {[%emt 0:02:02]} 9. e4 {[%emt 0:05:21] A54: Old Indian Defence with Nf3, but without e4.} a6 {[%emt 0:01:35]} 10. a4 {[%emt 0:02:48]} a5 {[%emt 0:05:24]} 11. h3 {[%emt 0:02:20]} Nb8 {[%emt 0:03:34]} 12. Be3 {[%emt 0:06:31]} Na6 {[%emt 0:00:54] [#]} 13. Qe2 $146 {[%emt 0:02:44]} ({Predecessor:} 13. Rad1 Bd7 14. Qe2 Rfe8 15. Ne1 h6 16. f4 Nh7 17. Qf2 exd4 18. Bxd4 Be6 19. b3 {1-0 (51) Yordanov,L (2283)-Velickovski Nejkovic,M (2147) Thessaloniki 2018}) 13... Bd7 {[%emt 0:03:00]} 14. Nh4 {[%emt 0:01:59]} Rfe8 {[%emt 0:00:41]} 15. Kh2 {[%emt 0:12:33]} g6 {[%emt 0:05:03]} 16. Rad1 {[%emt 0:06:31]} Nh5 {[%emt 0:06:41]} 17. Nf5 {[%emt 0:09:11]} Bf8 {[%emt 0:07:04] [#]} (17... Bxf5 $11 18. exf5 exd4 19. Bxd4 Bf6) 18. Qf3 {[%emt 0:03:50]} (18. Nh6+ $1 $16 Bxh6 19. Bxh6) 18... Ng7 $2 {[%emt 0:01:00]} (18... exd4 $14 19. Rxd4 (19. Bxd4 Nc5 $11) 19... Bxf5 20. exf5 Bg7) 19. Nh6+ {[%emt 0:00:08] Double Attack} Kh8 {[%emt 0:00:44]} 20. Nxf7+ {[%emt 0:00:17]} Kg8 {[%emt 0:00:09]} 21. d5 {[%emt 0:04:09]} Be7 $2 {[%emt 0:04:43]} (21... Nh5 22. Nh6+ (22. Ng5 Bc8 $18) 22... Bxh6) 22. Nh6+ {[%emt 0:01:38]} Kh8 {[%emt 0:00:29]} 23. Qe2 {[%emt 0:00:33]} (23. Qf7 $142 Nh5 24. f4) 23... Rf8 {[%emt 0:01:47]} 24. f4 {[%emt 0:00:20]} exf4 {[%emt 0:09:42]} 25. Rxf4 {[%emt 0:03:46]} Nh5 $2 {[%emt 0:01:09]} (25... Rxf4 26. Bxf4 Rf8 27. dxc6 bxc6) 26. Bd4+ {[%emt 0:02:48]} Bf6 {[%emt 0:04:08]} 27. Bxf6+ {[%emt 0:00:04]} Rxf6 {[%emt 0:02:21]} 28. Rxf6 {[%emt 0:00:08]} Nxf6 {[%emt 0:00:14] [#]} 29. e5 $1 {[%emt 0:00:34]} dxe5 $18 {[%emt 0:01:08]} 30. d6 {[%emt 0:00:08]} Qd8 {[%emt 0:01:04]} 31. Nf7+ {[%emt 0:11:05] Qc7} 1-0

[Event "110th Anniversary Open 2020"]
[Site "Hilleroed"]
[Date "2020.02.10"]
[Round "4.3"]
[White "Schultz-Pedersen, Jesper"]
[Black "Kvendseth, Thyra"]
[Result "1/2-1/2"]
[ECO "B23"]
[WhiteElo "2058"]
[BlackElo "1889"]
[Annotator "NA"]
[PlyCount "72"]
[EventDate "2020.02.08"]
[EventType "swiss"]
[EventCountry "DEN"]
[SourceTitle "playchess.com"]
[Source "ChessBase"]
[SourceQuality "1"]
[TimeControl "40/5400+30:1800+30"]

{[%evp 22,72,69,77,57,27,32767,32767,32767,32767,37,-62,-39,-56,-73,-68,-64,-63,-63,-62,-68,-53,-58,-65,-51,-50,12,33,43,10,33,44,27,-13,-5,-20,0,0,0,0,26,0,21,0,0,-33,0,-38,-29,-40,-30,-31,-1]} 1. e4 {[%emt 0:00:00]} g6 {[%emt 0:00:02]} 2. Nc3 {[%emt 0:00:00]} Bg7 {[%emt 0:00:12]} 3. f4 {[%emt 0:00:06]} d6 {[%emt 0:01:38]} 4. Nf3 {[%emt 0:00:15]} Nf6 {[%emt 0:01:59]} 5. Bc4 {[%emt 0:01:21]} O-O {[%emt 0:05:42]} 6. d3 {[%emt 0:00:29]} Nc6 {[%emt 0:02:30]} 7. O-O {[%emt 0:02:43]} Na5 {[%emt 0:09:18]} 8. Bb3 {[%emt 0:02:21]} c5 {[%emt 0:07:05]} 9. Qe1 {[%emt 0:03:15]} Nxb3 {[%emt 0:09:17]} 10. axb3 {[%emt 0:00:27]} Nh5 {[%emt 0:07:35] B23: Closed Sicilian: Lines without g3.} 11. f5 {[%emt 0:09:33] [#]} Nf6 $146 {[%emt 0:05:20]} ({Predecessor:} 11... e6 12. g4 Nf6 13. Qh4 exf5 14. exf5 Nxg4 15. Qxg4 Bxf5 16. Qg3 Qd7 17. Nd5 Be6 18. Ne3 {1-0 (45) Ratcu,T-Mrvova,A Szeged 1994}) 12. fxg6 {[%emt 0:05:00]} fxg6 {[%emt 0:04:33]} 13. Bg5 {[%emt 0:04:38]} Bg4 {[%emt 0:08:54]} 14. Qh4 {[%emt 0:03:56]} Qd7 {[%emt 0:02:08]} 15. Rae1 {[%emt 0:05:43]} Rae8 {[%emt 0:06:07]} (15... Bxf3 $5 16. Rxf3 a6 $14) 16. Kh1 {[%emt 0:02:17]} (16. Nd2 $14) 16... Nh5 {[%emt 0:04:15]} 17. h3 {[%emt 0:06:41]} Bxf3 $1 {[%emt 0:01:11]} 18. Rxf3 {[%emt 0:00:08]} Rxf3 {[%emt 0:00:46]} 19. gxf3 {[%emt 0:00:02]} Rf8 {[%emt 0:02:29]} 20. Qg4 {[%emt 0:04:16]} e6 {[%emt 0:01:52]} 21. Kg2 {[%emt 0:07:08]} Be5 {[%emt 0:02:38]} 22. Ne2 {[%emt 0:01:34]} Qf7 {[%emt 0:04:47]} 23. c3 {[%emt 0:03:54]} Bf4 {[%emt 0:03:24]} ({Black should play} 23... Qd7 $15) 24. Nxf4 {[%emt 0:01:41]} Nxf4+ {[%emt 0:00:02]} 25. Bxf4 {[%emt 0:00:34]} Qxf4 {[%emt 0:00:02]} 26. Qxf4 {[%emt 0:02:50]} Rxf4 {[%emt 0:00:02]} 27. d4 {[%emt 0:00:48]} cxd4 {[%emt 0:03:18]} 28. cxd4 {[%emt 0:00:02]} Rf7 {[%emt 0:01:27]} 29. Rc1 $11 {[%emt 0:00:09]} Kg7 {[%emt 0:00:25]} 30. Rc8 {[%emt 0:01:20]} Rd7 {[%emt 0:01:32]} 31. Kf2 {[%emt 0:02:22]} Kf6 {[%emt 0:00:57]} 32. Ke3 {[%emt 0:01:41]} g5 {[%emt 0:02:22]} 33. f4 {[%emt 0:03:52]} gxf4+ {[%emt 0:01:13]} 34. Kxf4 {[%emt 0:00:02]} e5+ {[%emt 0:00:21]} 35. Ke3 {[%emt 0:01:29]} Rg7 {[%emt 0:00:36]} 36. dxe5+ {[%emt 0:00:39]} Kxe5 {[%emt 0:02:01]} 1/2-1/2

[Event "110th Anniversary Open 2020"]
[Site "Hilleroed"]
[Date "2020.02.10"]
[Round "4.5"]
[White "Siva Mahadevan"]
[Black "Andersen, Soren Bull"]
[Result "1-0"]
[ECO "B07"]
[WhiteElo "2310"]
[BlackElo "2100"]
[Annotator "ChessBase"]
[PlyCount "41"]
[EventDate "2020.02.08"]
[EventType "swiss"]
[EventCountry "DEN"]
[SourceTitle "playchess.com"]
[Source "ChessBase"]
[SourceQuality "1"]
[TimeControl "40/5400+30:1800+30"]

1. e4 {[%emt 0:08:29]} d6 {[%emt 0:00:16]} 2. d4 {[%emt 0:00:16]} Nf6 {[%emt 0:00:08]} 3. Nc3 {[%emt 0:00:14]} c6 {[%emt 0:00:06]} 4. f4 {[%emt 0:01:59]} Qa5 {[%emt 0:01:32]} 5. Bd3 {[%emt 0:00:11]} Nbd7 {[%emt 0:03:56]} 6. e5 {[%emt 0:03:38]} Nd5 {[%emt 0:03:38]} 7. Bd2 {[%emt 0:08:44]} Qc7 {[%emt 0:13:03]} 8. Nf3 {[%emt 0:02:17]} g6 {[%emt 0:04:50]} 9. O-O {[%emt 0:00:20]} Bh6 {[%emt 0:09:19]} 10. Nxd5 {[%emt 0:04:15]} cxd5 {[%emt 0:00:04]} 11. Qe1 {[%emt 0:00:18]} dxe5 {[%emt 0:10:40]} 12. fxe5 {[%emt 0:00:39]} Bxd2 {[%emt 0:01:35]} 13. Qxd2 {[%emt 0:00:02]} Qb6 {[%emt 0:12:28]} 14. c4 {[%emt 0:11:29]} Nxe5 {[%emt 0:05:21]} 15. Nxe5 {[%emt 0:00:16]} Qxd4+ {[%emt 0:00:12]} 16. Qf2 {[%emt 0:00:05]} Qxe5 {[%emt 0:00:12]} 17. Qxf7+ {[%emt 0:00:15]} Kd8 {[%emt 0:01:21]} 18. Rae1 {[%emt 0:00:16]} Qd4+ {[%emt 0:07:21]} 19. Kh1 {[%emt 0:00:13]} Qc5 {[%emt 0:05:47]} 20. Re5 {[%emt 0:00:55]} e6 {[%emt 0:00:40]} 21. Qf6+ {[%emt 0:55:39]} 1-0

[Event "110th Anniversary Open 2020"]
[Site "Hilleroed"]
[Date "2020.02.15"]
[Round "9.3"]
[White "Siva Mahadevan"]
[Black "Stanford, Maxim Barth"]
[Result "1-0"]
[ECO "C18"]
[WhiteElo "2310"]
[BlackElo "2339"]
[Annotator "ChessBase"]
[PlyCount "105"]
[EventDate "2020.02.08"]
[EventType "swiss"]
[EventCountry "DEN"]
[SourceTitle "playchess.com"]
[Source "ChessBase"]
[SourceQuality "1"]
[TimeControl "40/5400+30:1800+30"]

1. e4 {[%emt 0:06:48]} e6 {[%emt 0:00:00]} 2. d4 {[%emt 0:00:38]} d5 {[%emt 0:00:00]} 3. Nc3 {[%emt 0:00:58]} Bb4 {[%emt 0:00:00]} 4. e5 {[%emt 0:00:06]} c5 {[%emt 0:00:09]} 5. a3 {[%emt 0:00:07]} Bxc3+ {[%emt 0:00:05]} 6. bxc3 {[%emt 0:00:04]} Qa5 {[%emt 0:00:13]} 7. Bd2 {[%emt 0:00:05]} Qa4 {[%emt 0:00:12]} 8. Qg4 {[%emt 0:00:28]} Kf8 {[%emt 0:00:25]} 9. Qd1 {[%emt 0:00:34]} Nc6 {[%emt 0:00:37]} 10. Nf3 {[%emt 0:00:51]} b6 {[%emt 0:06:51]} 11. h4 {[%emt 0:14:02]} h6 {[%emt 0:01:58]} 12. h5 {[%emt 0:02:46]} Ba6 {[%emt 0:03:08]} 13. Rh4 {[%emt 0:00:48]} Bxf1 {[%emt 0:00:21]} 14. Kxf1 {[%emt 0:00:09]} Qa6+ {[%emt 0:09:24]} 15. Kg1 {[%emt 0:00:23]} cxd4 {[%emt 0:02:35]} 16. cxd4 {[%emt 0:03:06]} Nge7 {[%emt 0:00:19]} 17. Rf4 {[%emt 0:07:14]} Ke8 {[%emt 0:01:06]} 18. Nh4 {[%emt 0:10:57]} Rc8 {[%emt 0:05:23]} 19. Qf3 {[%emt 0:20:52]} Nd8 {[%emt 0:04:33]} 20. c3 {[%emt 0:10:47]} Qa4 {[%emt 0:01:58]} 21. Rg4 {[%emt 0:01:53]} Qc2 {[%emt 0:02:10]} 22. Be3 {[%emt 0:08:08]} Rg8 {[%emt 0:03:45]} 23. Rc1 {[%emt 0:01:30]} Qb2 {[%emt 0:02:02]} 24. Qg3 {[%emt 0:00:51]} Rxc3 {[%emt 0:00:45]} 25. Rxc3 {[%emt 0:00:21]} Qxc3 {[%emt 0:00:06]} 26. Rxg7 {[%emt 0:00:17]} Rh8 {[%emt 0:01:15]} 27. Qf4 {[%emt 0:04:10]} Qd3 {[%emt 0:05:37]} 28. Kh2 {[%emt 0:03:39]} Qe2 {[%emt 0:14:18]} 29. g4 {[%emt 0:00:23]} a5 {[%emt 0:04:16]} 30. a4 {[%emt 0:01:23]} Qd1 {[%emt 0:00:39]} 31. Bc1 {[%emt 0:00:37]} Qxa4 {[%emt 0:02:05]} 32. Be3 {[%emt 0:00:34]} Qd1 {[%emt 0:00:21]} 33. Qf6 {[%emt 0:00:24]} Ng8 {[%emt 0:02:05]} 34. Qf4 {[%emt 0:00:21]} Ne7 {[%emt 0:06:49]} 35. Qf6 {[%emt 0:00:24]} Ng8 {[%emt 0:03:39]} 36. Qf4 {[%emt 0:00:02]} Qc2 {[%emt 0:09:51]} 37. g5 {[%emt 0:01:05]} Qe4 {[%emt 0:00:59]} 38. Qxe4 {[%emt 0:00:39]} dxe4 {[%emt 0:00:06]} 39. g6 {[%emt 0:00:07]} Ne7 {[%emt 0:00:51]} 40. Rh7 {[%emt 0:00:27]} Rg8 {[%emt 0:01:44]} 41. g7 {[%emt 0:03:38]} f5 {[%emt 0:05:08]} 42. exf6 {[%emt 0:05:00]} Nd5 {[%emt 0:00:09]} 43. Rxh6 {[%emt 0:00:58]} Kf7 {[%emt 0:05:09]} 44. Bg5 {[%emt 0:00:49]} a4 {[%emt 0:01:37]} 45. Rh8 {[%emt 0:00:44]} a3 {[%emt 0:02:26]} 46. h6 {[%emt 0:00:21]} a2 {[%emt 0:00:04]} 47. h7 {[%emt 0:00:12]} Rxg7 {[%emt 0:00:13]} 48. Rf8+ {[%emt 0:01:41]} Kxf8 {[%emt 0:00:07]} 49. h8=Q+ {[%emt 0:00:06]} Rg8 {[%emt 0:00:18]} 50. Ng6+ {[%emt 0:00:05]} Ke8 {[%emt 0:00:45]} 51. Qxg8+ {[%emt 0:00:04]} Kd7 {[%emt 0:00:10]} 52. Ne5+ {[%emt 0:00:15]} Kc8 {[%emt 0:00:21]} 53. f7 {[%emt 0:00:06]} 1-0

[Event "110th Anniversary Open 2020"]
[Site "Hilleroed"]
[Date "2020.02.15"]
[Round "9.4"]
[White "Thorsbro, Peter"]
[Black "Nilssen, John Arni"]
[Result "0-1"]
[ECO "A43"]
[WhiteElo "2159"]
[BlackElo "2333"]
[Annotator "ChessBase"]
[PlyCount "120"]
[EventDate "2020.02.08"]
[EventType "swiss"]
[EventCountry "DEN"]
[SourceTitle "playchess.com"]
[Source "ChessBase"]
[SourceQuality "1"]
[TimeControl "40/5400+30:1800+30"]

1. d4 {[%emt 0:00:00]} g6 {[%emt 0:00:00]} 2. e4 {[%emt 0:00:00]} Nf6 {[%emt 0:00:00]} 3. Nc3 {[%emt 0:00:00]} c5 {[%emt 0:00:00]} 4. d5 {[%emt 0:00:59]} d6 {[%emt 0:00:00]} 5. Be2 {[%emt 0:00:47]} Bg7 {[%emt 0:00:04]} 6. Be3 {[%emt 0:04:12]} Na6 {[%emt 0:01:44]} 7. Qd2 {[%emt 0:01:38]} Nc7 {[%emt 0:05:15]} 8. a4 {[%emt 0:01:16]} O-O {[%emt 0:08:16]} 9. Bh6 {[%emt 0:01:46]} e6 {[%emt 0:00:24]} 10. O-O-O {[%emt 0:03:21]} exd5 {[%emt 0:03:27]} 11. exd5 {[%emt 0:01:10]} a6 {[%emt 0:03:10]} 12. h4 {[%emt 0:07:13]} b5 {[%emt 0:00:45]} 13. h5 {[%emt 0:01:13]} b4 {[%emt 0:00:31]} 14. Bxg7 {[%emt 0:00:22]} Kxg7 {[%emt 0:02:01]} 15. hxg6 {[%emt 0:04:20]} fxg6 {[%emt 0:03:54]} 16. Qh6+ {[%emt 0:01:12]} Kg8 {[%emt 0:01:23]} 17. Ne4 {[%emt 0:00:30]} Qe7 {[%emt 0:02:11]} 18. Nxf6+ {[%emt 0:09:35]} Rxf6 {[%emt 0:01:03]} 19. Nf3 {[%emt 0:00:19]} Bg4 {[%emt 0:34:39]} 20. Rde1 {[%emt 0:39:03]} Bxf3 {[%emt 0:18:11]} 21. Bxf3 {[%emt 0:00:03]} Qf7 {[%emt 0:00:08]} 22. Re3 {[%emt 0:07:44]} Re8 {[%emt 0:05:00]} 23. Rhe1 {[%emt 0:02:26]} Rxe3 {[%emt 0:00:26]} 24. Qxe3 {[%emt 0:00:04]} Rf5 {[%emt 0:03:23]} 25. Qd3 {[%emt 0:03:35]} a5 {[%emt 0:00:19]} 26. c4 {[%emt 0:01:58]} Rf4 {[%emt 0:00:46]} 27. Re3 {[%emt 0:02:07]} Ne8 {[%emt 0:02:44]} 28. Qe2 {[%emt 0:00:17]} Ng7 {[%emt 0:00:19]} 29. Bg4 {[%emt 0:03:02]} Rxf2 {[%emt 0:03:48]} 30. Be6 {[%emt 0:01:07]} Rxe2 {[%emt 0:00:35]} 31. Bxf7+ {[%emt 0:00:03]} Kxf7 {[%emt 0:00:09]} 32. Rxe2 {[%emt 0:00:02]} h5 {[%emt 0:00:33]} 33. Kd2 {[%emt 0:00:18]} Kf6 {[%emt 0:00:35]} 34. Ke1 {[%emt 0:00:44]} g5 {[%emt 0:00:42]} 35. Kf2 {[%emt 0:01:06]} Kf7 {[%emt 0:00:17]} 36. Re1 {[%emt 0:01:26]} Kf6 {[%emt 0:00:07]} 37. Re4 {[%emt 0:00:26]} Kf7 {[%emt 0:00:14]} 38. Re2 {[%emt 0:01:13]} Kf6 {[%emt 0:00:05]} 39. Re1 {[%emt 0:00:03]} Kf7 {[%emt 0:00:05]} 40. Kf3 {[%emt 0:00:17]} Nf5 {[%emt 0:00:44]} 41. Ke4 {[%emt 0:32:42]} Kg6 {[%emt 0:08:17]} 42. Kd3 {[%emt 0:00:00]} g4 {[%emt 0:01:37]} 43. Re8 {[%emt 0:00:00]} Kg5 {[%emt 0:01:23]} 44. Ke4 {[%emt 0:00:00]} Ng3+ {[%emt 0:01:32]} 45. Ke3 {[%emt 0:00:00]} h4 {[%emt 0:01:45]} 46. Kf2 {[%emt 0:00:00]} Kf4 {[%emt 0:00:43]} 47. Ra8 {[%emt 0:00:00]} Ne4+ {[%emt 0:00:26]} 48. Kg1 {[%emt 0:00:00]} Kg3 {[%emt 0:03:21]} 49. Re8 {[%emt 0:00:00]} Kf4 {[%emt 0:03:28]} 50. Rh8 {[%emt 0:00:00]} Nd2 {[%emt 0:02:43]} 51. Ra8 {[%emt 0:00:00]} Nxc4 {[%emt 0:01:58]} 52. b3 {[%emt 0:00:00]} Nd2 {[%emt 0:01:20]} 53. Rxa5 {[%emt 0:00:00]} Nxb3 {[%emt 0:00:21]} 54. Ra8 {[%emt 0:00:00]} Ke5 {[%emt 0:00:27]} 55. Rg8 {[%emt 0:00:00]} Kxd5 {[%emt 0:02:32]} 56. Rg5+ {[%emt 0:00:51]} Kc6 {[%emt 0:00:19]} 57. Rxg4 {[%emt 0:00:09]} Nd4 {[%emt 0:00:08]} 58. Rxh4 {[%emt 0:00:33]} b3 {[%emt 0:00:12]} 59. Kf2 {[%emt 0:00:03]} b2 {[%emt 0:00:21]} 60. Rh1 {[%emt 0:00:04]} c4 {[%emt 0:00:20]} 0-1

[Event "110th Anniversary Open 2020"]
[Site "Hilleroed"]
[Date "2020.02.15"]
[Round "9.5"]
[White "Larsen, Karsten"]
[Black "Schultz-Pedersen, Jesper"]
[Result "1/2-1/2"]
[ECO "D02"]
[WhiteElo "2235"]
[BlackElo "2058"]
[Annotator "ChessBase"]
[PlyCount "89"]
[EventDate "2020.02.08"]
[EventType "swiss"]
[EventCountry "DEN"]
[SourceTitle "playchess.com"]
[Source "ChessBase"]
[SourceQuality "1"]
[TimeControl "40/5400+30:1800+30"]

1. Nf3 {[%emt 0:00:00]} Nc6 {[%emt 0:00:00]} 2. d4 {[%emt 0:00:25]} d5 {[%emt 0:00:09]} 3. Bf4 {[%emt 0:00:57]} Bg4 {[%emt 0:00:07]} 4. e3 {[%emt 0:04:17]} e6 {[%emt 0:00:09]} 5. Be2 {[%emt 0:02:27]} Bd6 {[%emt 0:01:18]} 6. Bg3 {[%emt 0:01:20]} Nf6 {[%emt 0:00:49]} 7. Nbd2 {[%emt 0:00:23]} O-O {[%emt 0:00:38]} 8. O-O {[%emt 0:00:17]} Bxg3 {[%emt 0:03:36]} 9. hxg3 {[%emt 0:00:57]} Qe7 {[%emt 0:01:15]} 10. c4 {[%emt 0:05:24]} Rfd8 {[%emt 0:05:47]} 11. Rc1 {[%emt 0:06:31]} Rac8 {[%emt 0:04:54]} 12. a3 {[%emt 0:09:25]} Bxf3 {[%emt 0:07:24]} 13. Bxf3 {[%emt 0:13:04]} e5 {[%emt 0:02:08]} 14. cxd5 {[%emt 0:01:17]} Nxd5 {[%emt 0:01:17]} 15. Qb3 {[%emt 0:08:52]} Nb6 {[%emt 0:07:24]} 16. Bxc6 {[%emt 0:02:11]} bxc6 {[%emt 0:00:02]} 17. Nf3 {[%emt 0:00:13]} exd4 {[%emt 0:02:36]} 18. Nxd4 {[%emt 0:00:41]} Qe4 {[%emt 0:03:34]} 19. Qc2 {[%emt 0:10:12]} Qg4 {[%emt 0:02:36]} 20. Nxc6 {[%emt 0:01:53]} Re8 {[%emt 0:01:20]} 21. Rfd1 {[%emt 0:01:27]} Ra8 {[%emt 0:04:25]} 22. Rd4 {[%emt 0:01:13]} Qg5 {[%emt 0:00:38]} 23. Qc5 {[%emt 0:04:53]} Qf6 {[%emt 0:02:19]} 24. Rcd1 {[%emt 0:00:42]} h6 {[%emt 0:00:29]} 25. R1d2 {[%emt 0:02:54]} Re6 {[%emt 0:03:59]} 26. Nd8 {[%emt 0:07:37]} Rd6 {[%emt 0:04:01]} 27. Rxd6 {[%emt 0:07:13]} cxd6 {[%emt 0:00:02]} 28. Qxd6 {[%emt 0:00:12]} Qxd6 {[%emt 0:00:20]} 29. Rxd6 {[%emt 0:00:02]} Nc4 {[%emt 0:00:08]} 30. Rd7 {[%emt 0:00:14]} Nxb2 {[%emt 0:00:33]} 31. Nc6 {[%emt 0:04:49]} a5 {[%emt 0:03:48]} 32. Rb7 {[%emt 0:01:13]} Nc4 {[%emt 0:00:37]} 33. a4 {[%emt 0:00:08]} Ra6 {[%emt 0:00:25]} 34. Ne7+ {[%emt 0:01:21]} Kh7 {[%emt 0:04:31]} 35. Nd5 {[%emt 0:00:08]} Rd6 {[%emt 0:00:28]} 36. Rb5 {[%emt 0:00:36]} Ra6 {[%emt 0:03:41]} 37. Kf1 {[%emt 0:00:45]} Nd6 {[%emt 0:00:44]} 38. Rc5 {[%emt 0:00:28]} Ne4 {[%emt 0:00:13]} 39. Rb5 {[%emt 0:00:35]} f5 {[%emt 0:01:40]} 40. Rb6 {[%emt 0:01:18]} Ra7 {[%emt 0:01:05]} 41. Rb5 {[%emt 0:03:44]} Nd6 {[%emt 0:01:58]} 42. Rb3 {[%emt 0:01:38]} Ne4 {[%emt 0:00:50]} 43. Rb5 {[%emt 0:05:10]} Nd6 {[%emt 0:00:56]} 44. Rb1 {[%emt 0:03:59]} Ne4 {[%emt 0:00:25]} 45. Rb5 {[%emt 0:08:22]} 1/2-1/2

[Event "110th Anniversary Open 2020"]
[Site "Hilleroed"]
[Date "2020.02.15"]
[Round "9.6"]
[White "Wu, Sibo"]
[Black "Kristiansen, Jens"]
[Result "0-1"]
[ECO "A46"]
[WhiteElo "2060"]
[BlackElo "2406"]
[Annotator "ChessBase"]
[PlyCount "110"]
[EventDate "2020.02.08"]
[EventType "swiss"]
[EventCountry "DEN"]
[SourceTitle "playchess.com"]
[Source "ChessBase"]
[SourceQuality "1"]
[TimeControl "40/5400+30:1800+30"]

1. d4 {[%emt 0:00:00]} Nf6 {[%emt 0:00:00]} 2. Nf3 {[%emt 0:00:15]} d6 {[%emt 0:00:14]} 3. Nbd2 {[%emt 0:00:42]} Bf5 {[%emt 0:00:29]} 4. g3 {[%emt 0:03:20]} Nc6 {[%emt 0:03:44]} 5. c3 {[%emt 0:03:17]} e5 {[%emt 0:00:43]} 6. d5 {[%emt 0:02:04]} Ne7 {[%emt 0:01:07]} 7. e4 {[%emt 0:00:54]} Bd7 {[%emt 0:01:09]} 8. Bg2 {[%emt 0:09:05]} g6 {[%emt 0:00:43]} 9. O-O {[%emt 0:02:56]} Bg7 {[%emt 0:00:09]} 10. a4 {[%emt 0:02:28]} O-O {[%emt 0:00:47]} 11. Re1 {[%emt 0:01:47]} Ne8 {[%emt 0:01:55]} 12. a5 {[%emt 0:06:10]} a6 {[%emt 0:02:07]} 13. b4 {[%emt 0:01:13]} h6 {[%emt 0:02:00]} 14. c4 {[%emt 0:11:56]} f5 {[%emt 0:01:10]} 15. Qb3 {[%emt 0:06:58]} Nf6 {[%emt 0:01:42]} 16. Bb2 {[%emt 0:01:38]} Kh8 {[%emt 0:07:56]} 17. Rac1 {[%emt 0:02:45]} Rc8 {[%emt 0:12:59]} 18. Re2 {[%emt 0:13:25]} Qe8 {[%emt 0:02:43]} 19. Ne1 {[%emt 0:04:21]} Qf7 {[%emt 0:04:05]} 20. Nd3 {[%emt 0:01:26]} g5 {[%emt 0:05:00]} 21. exf5 {[%emt 0:11:57]} Bxf5 {[%emt 0:00:18]} 22. f3 {[%emt 0:00:44]} h5 {[%emt 0:05:09]} 23. Rf1 {[%emt 0:00:35]} Qg6 {[%emt 0:01:11]} 24. Nf2 {[%emt 0:01:03]} Neg8 {[%emt 0:06:11]} 25. c5 {[%emt 0:01:38]} g4 {[%emt 0:02:59]} 26. fxg4 {[%emt 0:02:18]} hxg4 {[%emt 0:00:19]} 27. Nc4 {[%emt 0:01:34]} Rcd8 {[%emt 0:02:42]} 28. Ba3 {[%emt 0:00:21]} Nh6 {[%emt 0:03:32]} 29. b5 {[%emt 0:01:04]} axb5 {[%emt 0:05:24]} 30. Qxb5 {[%emt 0:00:17]} Nf7 {[%emt 0:00:44]} 31. Bc1 {[%emt 0:05:27]} Bh6 {[%emt 0:09:29]} 32. Ne3 {[%emt 0:00:45]} Bc8 {[%emt 0:00:35]} 33. Qd3 {[%emt 0:00:42]} Qh5 {[%emt 0:00:56]} 34. Ne4 {[%emt 0:00:53]} Nxe4 {[%emt 0:01:00]} 35. Bxe4 {[%emt 0:00:21]} Ng5 {[%emt 0:00:19]} 36. Bg6 {[%emt 0:00:17]} Rxf1+ {[%emt 0:00:48]} 37. Kxf1 {[%emt 0:00:34]} Rf8+ {[%emt 0:00:47]} 38. Ke1 {[%emt 0:00:40]} Nf3+ {[%emt 0:01:11]} 39. Kd1 {[%emt 0:00:05]} Qg5 {[%emt 0:00:51]} 40. Bb2 {[%emt 0:01:06]} Bd7 {[%emt 0:04:52]} 41. Be4 {[%emt 0:05:21]} Ba4+ {[%emt 0:05:13]} 42. Kc1 {[%emt 0:01:02]} Ng1 {[%emt 0:01:08]} 43. Re1 {[%emt 0:00:13]} Nf3 {[%emt 0:08:58]} 44. Re2 {[%emt 0:00:16]} dxc5 {[%emt 0:01:48]} 45. Kb1 {[%emt 0:12:06]} Nd4 {[%emt 0:00:43]} 46. Bxd4 {[%emt 0:02:55]} exd4 {[%emt 0:01:00]} 47. Nf5 {[%emt 0:00:13]} Qc1+ {[%emt 0:01:54]} 48. Ka2 {[%emt 0:00:04]} Rxf5 {[%emt 0:03:01]} 49. Bxf5 {[%emt 0:00:10]} c4 {[%emt 0:00:16]} 50. Qb1 {[%emt 0:04:26]} Bb3+ {[%emt 0:01:11]} 51. Ka1 {[%emt 0:00:06]} Qa3+ {[%emt 0:03:26]} 52. Ra2 {[%emt 0:00:04]} Bxa2 {[%emt 0:00:59]} 53. Qxa2 {[%emt 0:00:04]} Qc3+ {[%emt 0:00:11]} 54. Qb2 {[%emt 0:00:04]} Qxa5+ {[%emt 0:00:12]} 55. Kb1 {[%emt 0:00:26]} Qxd5 {[%emt 0:17:31]} 0-1

[Event "110th Anniversary Open 2020"]
[Site "Hilleroed"]
[Date "2020.02.15"]
[Round "9.7"]
[White "Petersen, Peter Birk"]
[Black "Sylvan, Jacob"]
[Result "1-0"]
[ECO "C97"]
[WhiteElo "2117"]
[BlackElo "2335"]
[Annotator "ChessBase"]
[PlyCount "63"]
[EventDate "2020.02.08"]
[EventType "swiss"]
[EventCountry "DEN"]
[SourceTitle "playchess.com"]
[Source "ChessBase"]
[SourceQuality "1"]
[TimeControl "40/5400+30:1800+30"]

1. e4 {[%emt 0:00:00]} e5 {[%emt 0:00:00]} 2. Nf3 {[%emt 0:00:00]} Nc6 {[%emt 0:00:00]} 3. Bb5 {[%emt 0:00:00]} a6 {[%emt 0:00:00]} 4. Ba4 {[%emt 0:00:00]} Nf6 {[%emt 0:00:04]} 5. O-O {[%emt 0:00:23]} Be7 {[%emt 0:00:24]} 6. Re1 {[%emt 0:00:23]} b5 {[%emt 0:00:05]} 7. Bb3 {[%emt 0:00:05]} O-O {[%emt 0:00:07]} 8. h3 {[%emt 0:00:50]} d6 {[%emt 0:00:17]} 9. c3 {[%emt 0:00:32]} Na5 {[%emt 0:00:07]} 10. Bc2 {[%emt 0:00:07]} c5 {[%emt 0:00:04]} 11. d4 {[%emt 0:00:32]} Qc7 {[%emt 0:00:10]} 12. Nbd2 {[%emt 0:01:00]} Bd7 {[%emt 0:01:22]} 13. Nf1 {[%emt 0:01:07]} Nc4 {[%emt 0:00:55]} 14. b3 {[%emt 0:02:06]} Nb6 {[%emt 0:00:21]} 15. Ne3 {[%emt 0:04:31]} Rfe8 {[%emt 0:03:04]} 16. dxe5 {[%emt 0:03:00]} dxe5 {[%emt 0:00:28]} 17. c4 {[%emt 0:00:12]} Bf8 {[%emt 0:05:19]} 18. Bb2 {[%emt 0:02:06]} g6 {[%emt 0:08:58]} 19. a4 {[%emt 0:07:17]} Bg7 {[%emt 0:10:23]} 20. axb5 {[%emt 0:10:20]} axb5 {[%emt 0:00:34]} 21. Rxa8 {[%emt 0:00:17]} Nxa8 {[%emt 0:00:45]} 22. Nxe5 {[%emt 0:12:00]} Rxe5 {[%emt 0:09:25]} 23. Qa1 {[%emt 0:00:18]} Re8 {[%emt 0:00:05]} 24. Bxf6 {[%emt 0:00:09]} Bxf6 {[%emt 0:00:06]} 25. Qxf6 {[%emt 0:00:07]} bxc4 {[%emt 0:00:06]} 26. Nd5 {[%emt 0:08:33]} Qa5 {[%emt 0:01:20]} 27. Ra1 {[%emt 0:07:26]} Qd2 {[%emt 0:01:57]} 28. Ra7 {[%emt 0:01:04]} Qc1+ {[%emt 0:04:19]} 29. Kh2 {[%emt 0:01:30]} Re6 {[%emt 0:00:08]} 30. Rxa8+ {[%emt 0:02:45]} Be8 {[%emt 0:00:17]} 31. Qc3 {[%emt 0:01:34]} cxb3 {[%emt 0:00:40]} 32. Bxb3 {[%emt 0:03:16]} 1-0